lending/lending_fUSD_20250508
["ID","MTS","AMOUNT","RATE_DAILY","PERIOD"]
[360269684,1746683440631,-150.0,0.0001979,2]
[360269685,1746683440641,-150.0,0.00019795,2]
[360269686,1746683440651,-984.84513514,0.00019797,2]
[360269687,1746683440661,-291.0,0.000198,2]
[360269688,1746683440671,-150.0,0.00019801,2]
[360269689,1746683440680,-150.0,0.00019801,2]
[360269690,1746683440691,-150.0,0.00019803,2]
[360269691,1746683440701,-150.0,0.00019807,2]
[360269693,1746683440710,-150.0,0.00019809,2]
[360269695,1746683440720,-150.0,0.00019811,2]
[360269697,1746683440729,-150.0,0.0001982,2]
[360269699,1746683440739,-150.0,0.00019828,2]
[360269701,1746683440748,-984.84513514,0.00019829,2]
[360269702,1746683440758,-150.0,0.0001983,2]
[360269704,1746683440768,-150.0,0.0001983,2]
[360269705,1746683440779,-150.0,0.00019838,2]
[360269706,1746683440788,-150.0,0.00019845,2]
[360269707,1746683441012,-150.0,0.00019852,2]
[360269708,1746683441023,-150.0,0.00019854,2]
[360269709,1746683441033,-174.53159,0.00019865,2]
[360269710,1746683441043,-150.0,0.00019877,2]
[360269711,1746683441053,-150.0,0.00019877,2]
[360269712,1746683441063,-1328.70077086,0.00019886,2]
[360269713,1746683441073,-500.0,0.00019886,2]
[360269714,1746683441083,-1328.70077081,0.00019888,2]
[360269715,1746683441093,-150.0,0.00019888,2]
[360269716,1746683441107,-1328.70077081,0.00019889,2]
[360269717,1746683441117,-150.0,0.0001989,2]
[360269718,1746683441127,-17186.075,0.0001989,2]
[360269719,1746683441139,-1328.70077081,0.00019891,2]
[360269720,1746683441149,-1328.70077081,0.00019892,2]
[360269721,1746683441161,-1328.70077081,0.00019894,2]
[360269722,1746683441170,-1328.70077081,0.00019895,2]
[360269723,1746683441181,-1328.70077081,0.00019897,2]
[360269724,1746683441192,-1328.70077081,0.00019898,2]
[360269725,1746683441202,-875.964728,0.00019899,2]
[360269726,1746683441212,-875.96472797,0.00019899,2]
[360269727,1746683441222,-875.96472797,0.00019899,2]
[360269728,1746683441232,-875.96472797,0.00019899,2]
[360269729,1746683441242,-875.96472797,0.00019899,2]
[360269730,1746683441252,-875.96472797,0.000199,2]
[360269731,1746683441262,-424.2351728,0.000199,2]
[360269732,1746683441273,-218.02874454,0.000199,2]
[360269733,1746683441283,-2612.0578,0.000199,2]
[360269734,1746683441292,-863.20529304,0.000199,2]
[360269735,1746683441303,-1328.70077081,0.000199,2]
[360269736,1746683441312,-2972.95920198,0.000199,2]
[360269737,1746683441324,-195.79693857,0.000199,2]
[360269738,1746683441333,-632.24754444,0.000199,2]
[360269739,1746683441344,-150.0,0.00019908,2]
[360269740,1746683441355,-150.0,0.0001991,2]
[360269741,1746683441365,-156.62664009,0.00019914,2]
[360269742,1746683441376,-150.0,0.00019915,2]
[360269743,1746683441385,-150.0,0.00019917,2]
[360269744,1746683441395,-150.0,0.0001992,2]
[360269745,1746683441405,-204.49410593,0.00019926,2]
[360269746,1746683441415,-150.0,0.00019929,2]
[360269747,1746683441425,-150.0,0.00019933,2]
[360269748,1746683441435,-150.0,0.00019934,2]
[360269749,1746683441444,-150.0,0.00019939,2]
[360269750,1746683441454,-150.0,0.00019948,2]
[360269751,1746683441464,-150.0,0.0001995,2]
[360269752,1746683441475,-150.0,0.00019952,2]
[360269753,1746683441485,-150.0,0.00019955,2]
[360269754,1746683441495,-150.0,0.00019956,2]
[360269755,1746683441507,-150.0,0.00019964,2]
[360269756,1746683441519,-150.0,0.00019966,2]
[360269757,1746683441529,-150.0,0.00019967,2]
[360269758,1746683441539,-150.0,0.00019971,2]
[360269759,1746683441549,-150.0,0.00019972,2]
[360269760,1746683441558,-500.0,0.00019973,2]
[360269761,1746683441569,-500.0,0.00019973,2]
[360269762,1746683441578,-500.0,0.00019973,2]
[360269763,1746683441588,-500.0,0.00019973,2]
[360269764,1746683441598,-197.23901026,0.0001998,2]
[360269765,1746683441609,-150.0,0.00019983,2]
[360269766,1746683441620,-1042.5668913,0.00019986,2]
[360269767,1746683441631,-32745.8657979,0.00019986,2]
[360269768,1746683441641,-3073.5269731,0.00019986,2]
[360269769,1746683441651,-450.0,0.00019988,2]
[360269770,1746683441660,-260.19952332,0.00019988,2]
[360269771,1746683441673,-511.60935486,0.00019988,2]
[360269772,1746683441682,-468.31153493,0.00019988,2]
[360269773,1746683441692,-509.15987108,0.00019988,2]
[360269774,1746683441702,-450.0,0.00019988,2]
[360269775,1746683441713,-150.0,0.00019996,2]
[360269776,1746683441724,-158.47699561,0.00019996,2]
[360269777,1746683441734,-450.0,0.00019998,2]
[360269778,1746683441743,-450.0,0.00019998,2]
[360269779,1746683441754,-450.0,0.00019998,2]
[360269780,1746683441764,-450.0,0.00019998,2]
[360269781,1746683441773,-450.0,0.00019998,2]
[360269782,1746683441783,-450.0,0.00019998,2]
[360269783,1746683441792,-430.19511628,0.00019998,2]
[360269784,1746683441802,-496.88925994,0.00019998,2]
[360269785,1746683441811,-450.0,0.00019998,2]
[360269786,1746683441821,-393.79,0.00019998,2]
[360269787,1746683441830,-443.93,0.00019998,2]
[360269788,1746683441840,-452.4128334,0.00019998,2]
[360269789,1746683441849,-539.63,0.00019998,2]
[360269790,1746683441859,-450.0,0.00019998,2]
[360269791,1746683441870,-463.94,0.00019998,2]
[360269792,1746683441881,-556.64463139,0.00019998,2]
[360269793,1746683441891,-450.0,0.00019998,2]
[360269794,1746683441900,-301.06,0.00019998,2]
[360269795,1746683441911,-450.0,0.00019998,2]
[360269796,1746683441922,-450.0,0.00019998,2]
[360269797,1746683441932,-493.8984719,0.00019998,2]
[360269798,1746683441942,-500.0,0.00019998,2]
[360269799,1746683441953,-450.0,0.00019998,2]
[360269800,1746683441963,-450.0,0.00019998,2]
[360269801,1746683441973,-165.08559906,0.00019998,2]
[360269802,1746683441983,-450.0,0.00019998,2]
[360269803,1746683441993,-455.64891368,0.00019998,2]
[360269804,1746683442003,-596.35859991,0.00019998,2]
[360269805,1746683442014,-393.15,0.00019998,2]
[360269806,1746683442025,-450.0,0.00019998,2]
[360269807,1746683442036,-450.0,0.00019998,2]
[360269808,1746683442046,-3090.06,0.00019998,2]
[360269809,1746683442055,-3090.06,0.00019998,2]
[360269810,1746683442067,-10369.81,0.00019998,2]
[360269811,1746683442078,-10369.81,0.00019998,2]
[360269812,1746683442087,-200.94561606,0.00019998,2]
[360269813,1746683442098,-480.45036268,0.00019998,2]
[360269814,1746683442110,-450.0,0.00019998,2]
[360269815,1746683442120,-450.0,0.00019998,2]
[360269816,1746683442130,-450.0,0.00019998,2]
[360269817,1746683442140,-450.0,0.00019998,2]
[360269818,1746683442150,-976.54,0.00019998,2]
[360269819,1746683442161,-976.54,0.00019998,2]
[360269820,1746683442171,-491.47363651,0.00019998,2]
[360269821,1746683442183,-349.00160598,0.00019998,2]
[360269822,1746683442194,-450.0,0.00019999,2]
[360269823,1746683442205,-450.0,0.00019999,2]
[360269824,1746683442215,-450.0,0.00019999,2]
[360269825,1746683442224,-450.0,0.00019999,2]
[360269826,1746683442234,-450.0,0.00019999,2]
[360269827,1746683442244,-450.0,0.00019999,2]
[360269828,1746683442253,-450.0,0.00019999,2]
[360269829,1746683442263,-234.64575144,0.00019999,2]
[360269830,1746683442273,-450.0,0.00019999,2]
[360269831,1746683442283,-450.0,0.00019999,2]
[360269832,1746683442293,-450.0,0.00019999,2]
[360269833,1746683442302,-450.0,0.00019999,2]
[360269834,1746683442312,-257.30948622,0.00019999,2]
[360269835,1746683442322,-453.66791193,0.00019999,2]
[360269836,1746683442332,-450.0,0.00019999,2]
[360269837,1746683442344,-597.41513872,0.00019999,2]
[360269838,1746683442354,-548.8982,0.00019999,2]
[360269839,1746683442363,-225.33,0.00019999,2]
[360269840,1746683442373,-1018.399,0.00019999,2]
[360269841,1746683442383,-169.96950447,0.00019999,2]
[360269842,1746683442392,-450.0,0.00019999,2]
[360269843,1746683442402,-576.58390231,0.00019999,2]
[360269844,1746683442411,-539.63,0.00019999,2]
[360269845,1746683442423,-539.63,0.00019999,2]
[360269846,1746683442432,-539.63,0.00019999,2]
[360269847,1746683442441,-539.63,0.00019999,2]
[360269848,1746683442451,-539.63,0.00019999,2]
[360269849,1746683442461,-539.63,0.00019999,2]
[360269850,1746683442471,-539.63,0.00019999,2]
[360269851,1746683442481,-539.63,0.00019999,2]
[360269852,1746683442491,-539.63,0.00019999,2]
[360269853,1746683442501,-539.63,0.00019999,2]
[360269854,1746683442510,-539.63,0.00019999,2]
[360269855,1746683442520,-539.63,0.00019999,2]
[360269856,1746683442530,-539.63,0.00019999,2]
[360269857,1746683442540,-539.63,0.00019999,2]
[360269858,1746683442550,-539.63,0.00019999,2]
[360269859,1746683442559,-539.63,0.00019999,2]
[360269860,1746683442568,-539.63,0.00019999,2]
[360269861,1746683442578,-539.63,0.00019999,2]
[360269862,1746683442587,-539.63,0.00019999,2]
[360269863,1746683442597,-539.63,0.00019999,2]
[360269864,1746683442608,-539.63,0.00019999,2]
[360269865,1746683442617,-539.63,0.00019999,2]
[360269866,1746683442627,-539.84768721,0.00019999,2]
[360269867,1746683442636,-463.94,0.00019999,2]
[360269868,1746683442646,-463.94,0.00019999,2]
[360269869,1746683442656,-463.94,0.00019999,2]
[360269870,1746683442666,-463.94,0.00019999,2]
[360269871,1746683442675,-463.94,0.00019999,2]
[360269872,1746683442685,-463.94,0.00019999,2]
[360269873,1746683442694,-463.94,0.00019999,2]
[360269874,1746683442704,-463.94,0.00019999,2]
[360269875,1746683442715,-463.94,0.00019999,2]
[360269876,1746683442725,-463.94,0.00019999,2]
[360269877,1746683442734,-463.94,0.00019999,2]
[360269878,1746683442744,-463.94,0.00019999,2]
[360269879,1746683442754,-463.94,0.00019999,2]
[360269880,1746683442764,-463.94,0.00019999,2]
[360269881,1746683442774,-463.94,0.00019999,2]
[360269882,1746683442784,-463.94,0.00019999,2]
[360269883,1746683442793,-463.94,0.00019999,2]
[360269884,1746683442803,-463.94,0.00019999,2]
[360269885,1746683442813,-463.94,0.00019999,2]
[360269886,1746683442823,-463.94,0.00019999,2]
[360269887,1746683442833,-463.94,0.00019999,2]
[360269888,1746683442843,-463.94,0.00019999,2]
[360269889,1746683442854,-464.15009628,0.00019999,2]
[360269890,1746683442864,-450.0,0.00019999,2]
[360269891,1746683442873,-450.0,0.00019999,2]
[360269892,1746683442883,-450.0,0.00019999,2]
[360269893,1746683442893,-450.0,0.00019999,2]
[360269894,1746683442903,-450.0,0.00019999,2]
[360269895,1746683442913,-450.0,0.00019999,2]
[360269896,1746683442923,-450.0,0.00019999,2]
[360269897,1746683442933,-450.0,0.00019999,2]
[360269898,1746683442942,-450.0,0.00019999,2]
[360269899,1746683442952,-250.5,0.00019999,2]
[360269900,1746683442963,-222.28,0.00019999,2]
[360269901,1746683442973,-3090.06,0.00019999,2]
[360269902,1746683442983,-3090.06,0.00019999,2]
[360269903,1746683442994,-3090.06,0.00019999,2]
[360269904,1746683443003,-3090.06,0.00019999,2]
[360269905,1746683443013,-3090.06,0.00019999,2]
[360269907,1746683443022,-3090.06,0.00019999,2]
[360269909,1746683443032,-3090.06,0.00019999,2]
[360269910,1746683443041,-3090.06,0.00019999,2]
[360269911,1746683443051,-3090.06,0.00019999,2]
[360269912,1746683443061,-3090.06,0.00019999,2]
[360269914,1746683443070,-3090.06,0.00019999,2]
[360269916,1746683443079,-3090.06,0.00019999,2]
[360269918,1746683443089,-3090.06,0.00019999,2]
[360269920,1746683443103,-3090.06,0.00019999,2]
[360269922,1746683443113,-3090.06,0.00019999,2]
[360269924,1746683443123,-3090.06,0.00019999,2]
[360269926,1746683443133,-3090.06,0.00019999,2]
[360269928,1746683443143,-3090.06,0.00019999,2]
[360269930,1746683443153,-3090.06,0.00019999,2]
[360269931,1746683443163,-3090.06,0.00019999,2]
[360269932,1746683443174,-3090.06,0.00019999,2]
[360269933,1746683443184,-3090.14986984,0.00019999,2]
[360269934,1746683443194,-10369.81,0.00019999,2]
[360269935,1746683443204,-10369.81,0.00019999,2]
[360269936,1746683443214,-10369.81,0.00019999,2]
[360269937,1746683443224,-10369.81,0.00019999,2]
[360269938,1746683443233,-10369.81,0.00019999,2]
[360269939,1746683443243,-10369.81,0.00019999,2]
[360269940,1746683443253,-10369.81,0.00019999,2]
[360269941,1746683443263,-10369.81,0.00019999,2]
[360269942,1746683443272,-10369.81,0.00019999,2]
[360269943,1746683443282,-10369.81,0.00019999,2]
[360269944,1746683443292,-10369.81,0.00019999,2]
[360269945,1746683443303,-10369.81,0.00019999,2]
[360269946,1746683443315,-10369.81,0.00019999,2]
[360269947,1746683443326,-10369.81,0.00019999,2]
[360269948,1746683443336,-10369.81,0.00019999,2]
[360269949,1746683443346,-10369.81,0.00019999,2]
[360269950,1746683443356,-10369.81,0.00019999,2]
[360269951,1746683443365,-10369.81,0.00019999,2]
[360269952,1746683443375,-10369.81,0.00019999,2]
[360269953,1746683443385,-10369.81,0.00019999,2]
[360269954,1746683443394,-10369.81,0.00019999,2]
[360269955,1746683443406,-10369.9324,0.00019999,2]
[360269956,1746683443417,-450.0,0.00019999,2]
[360269957,1746683443426,-450.0,0.00019999,2]
[360269958,1746683443436,-408.62435288,0.00019999,2]
[360269959,1746683443446,-976.54,0.00019999,2]
[360269960,1746683443456,-976.54,0.00019999,2]
[360269961,1746683443466,-976.54,0.00019999,2]
[360269962,1746683443478,-976.54,0.00019999,2]
[360269963,1746683443489,-976.54,0.00019999,2]
[360269964,1746683443499,-976.54,0.00019999,2]
[360269965,1746683443510,-976.54,0.00019999,2]
[360269966,1746683443521,-976.54,0.00019999,2]
[360269967,1746683443531,-976.54,0.00019999,2]
[360269968,1746683443542,-976.54,0.00019999,2]
[360269969,1746683443551,-976.54,0.00019999,2]
[360269970,1746683443563,-976.54,0.00019999,2]
[360269971,1746683443572,-976.54,0.00019999,2]
[360269972,1746683443582,-976.54,0.00019999,2]
[360269973,1746683443591,-976.54,0.00019999,2]
[360269974,1746683443600,-976.54,0.00019999,2]
[360269975,1746683443610,-976.54,0.00019999,2]
[360269976,1746683443620,-976.54,0.00019999,2]
[360269977,1746683443629,-976.54,0.00019999,2]
[360269978,1746683443639,-976.54,0.00019999,2]
[360269979,1746683443651,-976.54,0.00019999,2]
[360269980,1746683443661,-976.76,0.00019999,2]
[360269981,1746683443670,-172.64010076,0.00019999,2]
[360269982,1746683443680,-4020.0,0.0002,2]
[360269983,1746683443690,-1143.0,0.0002,2]
[360269984,1746683443699,-5935.0,0.0002,2]
[360269985,1746683443709,-357.22436642,0.0002,2]
[360269986,1746683443718,-202981.32138151,0.0002,2]
[360269991,1746683443907,-15726.99929135,0.0002,2]
[360269992,1746683443918,-9118.9011435,0.0002,2]
[360269993,1746683443929,-560.80114147,0.0002,2]
[360269994,1746683444050,-875.96472797,0.000199,2]
[360269995,1746683444060,-6924.03527203,0.0002,2]
[360269996,1746683444075,-1384.28247185,0.0002,2]
[360269997,1746683444089,-658.37860201,0.0002,2]
[360269998,1746683444105,-153016.22973691,0.0002,2]
[360269999,1746683444115,-83403.9041557,0.0002,2]
[360270000,1746683444131,-1138.53095445,0.0002,2]
[360270001,1746683444143,-494999.99999979,0.0002,2]
[360270002,1746683444158,-266.4176754,0.0002,2]
[360270005,1746683446034,-450.0,0.00019998,2]
[360270006,1746683446044,-1192.57424536,0.0002,2]
[360270007,1746683446056,-71424.88,0.0002,2]
[360270008,1746683446477,-7349.88311069,0.0002,2]
[360270010,1746683446498,-2248763.42261102,0.0002,2]
[360270012,1746683446507,-253689.74322612,0.0002,2]
[360270021,1746683455135,500.0,0.00029589,30]
[360270022,1746683455191,500.0,0.00029863,30]
[360270023,1746683502321,1207.46,0.00019,2]
[360270024,1746683503713,5610.46,0.00019253,2]
[360270031,1746683537087,3719.67,0.00019179,2]
[360270039,1746683604681,-276.6296521,0.000198,2]
[360270040,1746683604712,-63.21994769,0.00019818,2]
[360270043,1746683612490,-245.95696167,0.00019818,2]
[360270129,1746683669788,1000.0,0.00019049,2]
[360270134,1746683708444,412.79,0.00017101,2]
[360270135,1746683708633,412.79,0.00019365,2]
[360270140,1746683741852,296.858,0.00030137,120]
[360270150,1746683829428,308.90984118,0.0003,30]
[360270168,1746683930138,168.08,0.000152,2]
[360270169,1746683936734,200.0,0.00019,2]
[360270244,1746684026222,500.0,0.00029589,30]
[360270245,1746684026484,500.0,0.00029863,30]
[360270248,1746684036816,16480.0,0.0003,30]
[360270252,1746684056820,166.0,0.000194,2]
[360270256,1746684084693,-165.22,0.00019552,2]
[360270259,1746684101530,-204.431196,0.00019552,2]
[360270264,1746684121998,-282.8438483,0.00019502,2]
[360270265,1746684126777,-157.70735956,0.00019502,2]
[360270267,1746684132296,-145.25535414,0.00019502,2]
[360270336,1746684197431,-155.00464586,0.00019502,2]
[360270337,1746684205406,-163.9893418,0.00019502,2]
[360270338,1746684219686,-121.55722034,0.00019502,2]
[360270341,1746684273059,-156.74979693,0.00019502,2]
[360270342,1746684279695,-281.01881758,0.00019502,2]
[360270343,1746684295469,-193.50316977,0.00019502,2]
[360270344,1746684309700,-9.49037572,0.00019502,2]
[360270345,1746684322035,168.75,0.00018938,2]
[360270438,1746684348554,-161.91903307,0.00019502,2]
[360270439,1746684350753,250.0,0.0003,30]
[360270440,1746684354755,-222.822099,0.00019502,2]
[360270441,1746684369829,-176.33059121,0.00019502,2]
[360270442,1746684385325,-70.20006072,0.00019502,2]
[360270443,1746684396156,162.6,0.0003,30]
[360270444,1746684424657,-163.09902207,0.00019502,2]
[360270445,1746684429680,-150.0,0.00019502,2]
[360270446,1746684444675,-188.76412246,0.00019502,2]
[360270447,1746684460397,-68.69895447,0.00019502,2]
[360270449,1746684501164,-227.60107646,0.00019502,2]
[360270450,1746684504699,-193.76925912,0.00019502,2]
[360270451,1746684508570,3023.54,0.00018938,2]
[360270452,1746684519730,-0.69286942,0.00019502,2]
[360270458,1746684632166,250.0,0.0003,30]
[360270459,1746684632393,-166.0,0.000196,2]
[360270460,1746684632403,-151.0,0.000196,2]
[360270461,1746684632414,-250.0,0.00019606,2]
[360270462,1746684632424,-200.0,0.00019613,2]
[360270463,1746684632433,-191.45630862,0.000197,2]
[360270464,1746684632443,-166.0,0.000198,2]
[360270465,1746684632453,-207.4,0.00019806,2]
[360270466,1746684632465,-895.50198418,0.00019818,2]
[360270467,1746684632475,-363.16807708,0.0001985,2]
[360270468,1746684632485,-363.16807708,0.00019889,2]
[360270469,1746684632494,-110.13018785,0.00019891,2]
[360270470,1746684632507,-1094.54870569,0.00019891,2]
[360270471,1746684632521,-300.0,0.00019898,2]
[360270472,1746684632535,-57.45129431,0.00019898,2]
[360270473,1746684632547,-501.84968142,0.00019898,2]
[360270474,1746684632559,-640.69902427,0.00019898,2]
[360270475,1746684632569,-300.0,0.00019898,2]
[360270476,1746684632579,-528.86290803,0.00019899,2]
[360270477,1746684632588,-569.02278996,0.00019899,2]
[360270478,1746684632598,-528.86290794,0.00019899,2]
[360270479,1746684632608,-528.86290794,0.00019899,2]
[360270480,1746684632618,-528.86290794,0.00019899,2]
[360270481,1746684632627,-528.86290794,0.00019899,2]
[360270482,1746684632637,-528.86290794,0.000199,2]
[360270483,1746684632647,-528.86290794,0.000199,2]
[360270485,1746684632657,-214.9152,0.000199,2]
[360270487,1746684632667,-2894.0139,0.000199,2]
[360270489,1746684632677,-528.86290794,0.000199,2]
[360270491,1746684632687,-528.86290794,0.000199,2]
[360270493,1746684632696,-186.881781,0.000199,2]
[360270495,1746684632706,-528.86290794,0.000199,2]
[360270497,1746684632715,-937.14930394,0.000199,2]
[360270498,1746684632725,-1359.22340584,0.000199,2]
[360270500,1746684632735,-392.0836817,0.000199,2]
[360270502,1746684632744,-1981.97280132,0.000199,2]
[360270504,1746684632754,-854.39373943,0.00019933,2]
[360270506,1746684632763,-4020.0,0.00019955,2]
[360270508,1746684632773,-1143.0,0.00019955,2]
[360270510,1746684632783,-784.50235,0.00019966,2]
[360270512,1746684632792,-183.450889,0.00019966,2]
[360270514,1746684632802,-784.50235,0.0001997,2]
[360270516,1746684632812,-784.50235,0.00019971,2]
[360270518,1746684632821,-500.0,0.00019973,2]
[360270520,1746684632831,-500.0,0.00019973,2]
[360270522,1746684632840,-425.24839402,0.00019973,2]
[360270525,1746684632853,-74.75160598,0.00019973,2]
[360270527,1746684632862,-784.50235,0.00019979,2]
[360270529,1746684632872,-784.50235,0.00019983,2]
[360270531,1746684632881,-784.50235,0.00019983,2]
[360270533,1746684632893,-784.50235,0.00019985,2]
[360270535,1746684632902,-1119.9287963,0.00019986,2]
[360270537,1746684632912,-34845.5552761,0.00019986,2]
[360270539,1746684632922,-3829.729624,0.00019986,2]
[360270541,1746684632931,-784.50235,0.00019997,2]
[360270543,1746684632941,-784.50235,0.00019997,2]
[360270545,1746684632950,-918.38477403,0.00019997,2]
[360270547,1746684632960,-1037.04,0.00019997,2]
[360270549,1746684632974,-169.969,0.00019997,2]
[360270551,1746684632984,-450.0,0.00019998,2]
[360270553,1746684632993,-450.0,0.00019998,2]
[360270555,1746684633002,-450.0,0.00019998,2]
[360270557,1746684633012,-450.0,0.00019998,2]
[360270559,1746684633022,-500.0,0.00019998,2]
[360270561,1746684633031,-450.0,0.00019998,2]
[360270563,1746684633041,-513.34797235,0.00019998,2]
[360270565,1746684633051,-450.0,0.00019998,2]
[360270567,1746684633061,-171.73,0.00019998,2]
[360270569,1746684633071,-500.0,0.00019998,2]
[360270571,1746684633081,-340.20410739,0.00019998,2]
[360270573,1746684633091,-450.0,0.00019998,2]
[360270575,1746684633101,-450.0,0.00019998,2]
[360270577,1746684633111,-459.19406974,0.00019998,2]
[360270579,1746684633121,-524.2075051,0.00019998,2]
[360270582,1746684633131,-450.0,0.00019998,2]
[360270584,1746684633141,-468.91339903,0.00019998,2]
[360270586,1746684633151,-450.0,0.00019998,2]
[360270588,1746684633162,-450.0,0.00019998,2]
[360270590,1746684633172,-211.4667648,0.00019998,2]
[360270592,1746684633182,-450.0,0.00019998,2]
[360270594,1746684633192,-490.0,0.00019998,2]
[360270595,1746684633202,-450.0,0.00019998,2]
[360270598,1746684633212,-450.0,0.00019998,2]
[360270599,1746684633222,-450.0,0.00019998,2]
[360270601,1746684633233,-450.0,0.00019998,2]
[360270603,1746684633243,-450.0,0.00019998,2]
[360270606,1746684633254,-450.0,0.00019998,2]
[360270608,1746684633264,-355.0789565,0.00019998,2]
[360270610,1746684633275,-500.0,0.00019998,2]
[360270612,1746684633285,-450.0,0.00019998,2]
[360270614,1746684633294,-193.46914927,0.00019998,2]
[360270616,1746684633304,-450.0,0.00019998,2]
[360270617,1746684633314,-450.0,0.00019998,2]
[360270620,1746684633324,-479.62881398,0.00019998,2]
[360270622,1746684633333,-450.0,0.00019998,2]
[360270624,1746684633343,-519.31841966,0.00019998,2]
[360270625,1746684633353,-450.0,0.00019998,2]
[360270627,1746684633362,-470.0,0.00019998,2]
[360270629,1746684633372,-461.28692634,0.00019998,2]
[360270631,1746684633382,-469.65,0.00019998,2]
[360270633,1746684633392,-500.59,0.00019998,2]
[360270635,1746684633403,-450.0,0.00019998,2]
[360270639,1746684633425,-402.28,0.00019998,2]
[360270641,1746684633437,-485.87,0.00019998,2]
[360270643,1746684633447,-450.0,0.00019998,2]
[360270645,1746684633461,-450.0,0.00019998,2]
[360270647,1746684633472,-459.73,0.00019998,2]
[360270649,1746684633483,-450.0,0.00019998,2]
[360270651,1746684633495,-450.0,0.00019998,2]
[360270653,1746684633505,-450.0,0.00019998,2]
[360270655,1746684633516,-450.0,0.00019998,2]
[360270657,1746684633526,-450.0,0.00019998,2]
[360270659,1746684633538,-548.8982,0.00019998,2]
[360270662,1746684633549,-500.0,0.00019998,2]
[360270664,1746684633560,-500.0,0.00019998,2]
[360270666,1746684633570,-500.0,0.00019998,2]
[360270668,1746684633581,-500.0,0.00019998,2]
[360270670,1746684633592,-500.0,0.00019998,2]
[360270672,1746684633603,-500.0,0.00019998,2]
[360270674,1746684633614,-500.0,0.00019998,2]
[360270676,1746684633625,-500.0,0.00019998,2]
[360270678,1746684633636,-500.0,0.00019998,2]
[360270680,1746684633646,-500.0,0.00019998,2]
[360270682,1746684633657,-500.0,0.00019998,2]
[360270684,1746684633667,-500.0,0.00019998,2]
[360270686,1746684633678,-500.0,0.00019998,2]
[360270688,1746684633688,-500.0,0.00019998,2]
[360270690,1746684633698,-500.0,0.00019998,2]
[360270692,1746684633709,-500.0,0.00019998,2]
[360270694,1746684633719,-455.20331648,0.00019998,2]
[360270696,1746684633729,-500.0,0.00019998,2]
[360270698,1746684633739,-500.0,0.00019998,2]
[360270700,1746684633750,-500.0,0.00019998,2]
[360270702,1746684633760,-295.72937831,0.00019998,2]
[360270704,1746684633770,-500.0,0.00019998,2]
[360270706,1746684633780,-500.0,0.00019998,2]
[360270708,1746684633792,-500.0,0.00019998,2]
[360270710,1746684633803,-500.0,0.00019998,2]
[360270712,1746684633813,-500.0,0.00019998,2]
[360270714,1746684633823,-500.0,0.00019998,2]
[360270716,1746684633833,-500.0,0.00019998,2]
[360270718,1746684633844,-500.0,0.00019998,2]
[360270721,1746684633859,-500.0,0.00019998,2]
[360270723,1746684633870,-500.0,0.00019998,2]
[360270725,1746684633880,-500.0,0.00019998,2]
[360270727,1746684633891,-500.0,0.00019998,2]
[360270729,1746684633902,-450.0,0.00019998,2]
[360270731,1746684633912,-272.74858186,0.00019998,2]
[360270733,1746684633922,-318.28769107,0.00019998,2]
[360270735,1746684633933,-450.0,0.00019998,2]